{"text_format":"1","workbook":"xlsx","n_sheets":7,"sheets":["Инструкция","Расчет1","Расчет2","Приказ об увольнении","Правовое обоснование","Отпуск более 24 дней","Данные об организации"],"not_rendered":{"charts":0,"images":22,"macros":1,"external_links":0,"defined_names":3,"comments":2,"pivot_tables":0},"unopened":[],"bounds":{"document_bytes":16777216,"sheet_cells":100000,"rows_first":2000,"rows_last":500,"rows_between":2000,"halvings":0,"cell_chars":16384,"cell_head_chars":4096},"cells_cut":0,"cells_raw":0,"read":"whole","date_system":"1900"}

{"sheet":"Инструкция","index":0,"n_rows":98,"n_cols":10,"rows_kept":98,"cut":false,"hidden":false,"merged":[[3,0,3,19],[4,0,4,19],[5,0,5,19]]}
["Сервис расчета количества дней неиспользованного трудового отпуска, подлежащих компенсации при увольнении erudo.by"]
[]
[]
["Сервис поможет вам учесть все нюансы расчета количества дней неиспользованного отпуска, подлежащих компенсации при увольнении согласно ТК, и вывести правильное их количество. "]
["Если в течение рабочего года сотруднику предоставлялся отпуск без сохранения заработной платы либо отпуск по уходу за ребенком или работник совершил прогулы, то наш сервис поможет все это учесть и сделать правильный расчет."]
["В сервисе предусмотрена возможность расчета для случаев, когда у работника в течение рабочего года изменялось количество дней отпуска."]
["Системные требования: ОС Windows, Microsoft Excel от версии 2013."]
["При первом открытии программы возможно появление следующего уведомления:"]
[]
[]
["Необходимо нажать кнопку",null,null,null,null,null,"  , чтобы продолжить работу с сервисом расчета количества дней отпуска, подлежащих компенсации при увольнении."]
["!","Перед началом работы необходимо убедиться, что включены макросы."]
["Сделать это можно следующим образом:"]
[]
[]
[]
[]
[]
["Либо при открытии может появиться следующее предупреждение:"]
[]
[]
["Необходимо нажать кнопку «Включить содержимое»."]
[]
["При открытии программы появится следующее окно:"]
[]
["В данном окне необходимо ввести (изменить) данные, которые автоматически будут подставлены"]
["в соответствующие ячейки листа «Приказ об увольнении»."]
[]
[]
[]
[]
[]
[]
["!","Самостоятельное добавление (удаление) строк (столбцов) в таблицу может привести к сбоям в работе программы!"]
["Сервис содержит следующие листы для расчета:"]
["·         «Расчет1».  Предназначен для расчета количества дней трудового отпуска, подлежащих компенсации при увольнении работника, за последний рабочий год."]
["На данном листе предусмотрена возможность расчета с учетом:"]
["а) присоединения неиспользованных дней трудового отпуска за предыдущие годы; "]
["б) изменения в течение рабочего года работника количества дней отпуска."]
["·         «Расчет2». Предназначен для расчета количества дней трудового отпуска, подлежащих компенсации при увольнении работника, за период от 1 до 5 рабочих лет ."]
[]
["Особенности заполнения листов «Расчет1» и «Расчет2»"]
[]
["!","При заполнении данных листов необходимо учитывать хронологию событий.  "]
["При вводе некорректных данных на экране отобразится одно из сообщений:",null,null,null,null,null,null,null,null,"             ."]
[]
[]
[]
["Пока одно из таких сообщений отображается на экране, данные расчета считать недействительными."]
["После ввода корректных данных сообщение исчезнет."]
[]
["На листе «Расчет1» рекомендуется заполнить следующие поля: «Фамилия», «Имя», «Отчество», «Должность»."]
["Обязательными для заполнения являются поля:"]
["·         «Начало рабочего года»;"]
["·         «Дата увольнения»;"]
["·         «Дней отпуска, всего»."]
["Далее необходимо сделать выбор, менялась ли продолжительность трудового отпуска в течение последнего рабочего года:"]
[]
[]
[]
[]
["При выборе варианта «да» отобразится дополнительный блок:"]
[]
[]
[]
[]
[]
["В данном блоке обязательными для заполнения являются поля:"]
["·         «Дата изменения»;"]
["·         «Дней отпуска, всего»."]
[]
["Если в течение рабочего года сотруднику предоставлялись отпуск без сохранения заработной платы, отпуск по уходу за ребенком до достижения им "]
["возраста 3 лет, необходимо заполнить соответствующие поля."]
[]
["Если работником были совершены прогулы в течение рабочего года, необходимо заполнить соответствующий раздел. Кроме того, нужно указать, "]
["уменьшают ли дни прогула количество дней трудового отпуска. Для этого следует установить флажок «Учитывать» в строке с указанием дат прогула."]
[]
["На листе «Расчет2» рекомендуется заполнить следующие поля: «Фамилия», «Имя», «Отчество», «Должность»."]
["Далее необходимо сделать выбор, для какого периода будет производиться расчет:"]
[]
[]
[]
["Обязательными для заполнения являются поля:"]
["·         «Начало рабочего года»;"]
["·         «Дата увольнения»;"]
["·         «Дней отпуска, всего» (для каждого из периодов)."]
[]
[]
["Для расчета количества дней трудового отпуска, подлежащих компенсации при увольнении, применен следующий алгоритм (основные этапы):"]
["1) рассчитываем количество отработанных в рабочем году полных месяцев;"]
["2) рассчитываем величину отпуска, приходящуюся на один месяц, путем деления продолжительности отпуска на 12 месяцев;"]
["3) умножаем величину отпуска, приходящуюся на один месяц, на количество отработанных месяцев в рабочем году (ч. 1 ст. 177 ТК);"]
["4) производим округление."]
[]
["Кнопка ",null,null,"           удаляет все введенные пользователем данные и обнуляет расчет."]
[]
["С помощью кнопки ",null,null,null,null,"    можно оформить шаблон приказа  об увольнении и выплате компенсации, в который будут перенесены заполненные и рассчитанные "]
["данные из листа «Расчет»."]

{"sheet":"Расчет1","index":1,"n_rows":65,"n_cols":23,"rows_kept":65,"cut":false,"hidden":false,"merged":[[53,4,53,7],[50,4,50,7],[51,5,51,6],[59,0,59,7],[49,0,49,3],[54,0,54,1],[54,5,55,6],[52,4,52,7],[48,4,49,7],[37,0,37,3],[37,4,37,7],[13,0,13,7],[45,0,45,1],[45,5,45,6],[18,2,18,3],[18,5,18,6],[34,2,34,3],[34,5,34,6],[1,0,1,7],[3,0,3,7],[16,0,16,7],[32,0,32,7],[5,1,5,2],[6,1,6,2],[7,1,7,2],[20,0,20,3],[20,4,20,7],[28,0,28,1],[28,5,28,6],[7,4,9,5],[8,1,9,2]]}
[]
["Расчет количества дней отпуска, подлежащих компенсации при увольнении"]
[]
["Исходные данные"]
[]
["Фамилия:",null,null,null,"Дата увольнения:"]
["Имя:",null,null,null,null,null,null,null,null,null,null,null,null,0]
["Отчество:",null,null,null,"Было изменение количества дней отпуска за последний рабочий год?"]
["Должность:"]
[]
[]
[]
[]
["Рабочий год:"]
[]
[]
["Период 1"]
[]
["Начало рабочего года:",null,"Дней отпуска, всего:",null,null,"Из них использовано:",null,null,{"$f":"IF(AND(E19<H19,H19<>\"\",E19<>\"\"),\"Введены некорректные данные\",IF(AND(F6<B19,B19<>\"\",F6<>\"\"),\"Введены некорректные данные\",\"\"))","v":""}]
[]
["Отпуск без сохранения заработной платы:",null,null,null,"Прогулы:"]
[null,null,null,null,null,null,null,null,null,null,null,null,null,{"$f":"EDATE(B19,12)-B19","v":366}]
["Начало","Окончание","Количество дней",null,null,"Начало","Окончание","Количество дней"]
[null,null,{"$f":"IF(AND(B24>=A24,ISBLANK(A24)=FALSE,ISBLANK(B24)=FALSE),DATEDIF(A24,B24,\"d\")+1,\"\")","v":""},null,null,null,null,{"$f":"IF(AND(G24>=F24,ISBLANK(F24)=FALSE,ISBLANK(G24)=FALSE),DATEDIF(F24,G24,\"d\")+1,\"\")","v":""},{"$f":"IF(AND(A24<B19,B19<>\"\",A24<>\"\"),\"Введены некорректные данные\",IF(AND(F6<B24,B24<>\"\",F6<>\"\"),\"Введены некорректные данные\",\"\"))","v":""},null,false,null,null,null,null,null,null,"Отпуск с учетом прогулов:",null,null,{"$f":"IF((E19-H29)<24,IF(E19>=24,24,E19-H29),E19-H29)","v":0},{"$f":"E19-U24","v":0}]
[null,null,{"$f":"IF(AND(B25>=A25,ISBLANK(A25)=FALSE,ISBLANK(B25)=FALSE),DATEDIF(A25,B25,\"d\")+1,\"\")","v":""},null,null,null,null,{"$f":"IF(AND(G25>=F25,ISBLANK(F25)=FALSE,ISBLANK(G25)=FALSE),DATEDIF(F25,G25,\"d\")+1,\"\")","v":""},{"$f":"IF(AND(A25<B19,B19<>\"\",A25<>\"\"),\"Введены некорректные данные\",IF(AND(F6<B25,B25<>\"\",F6<>\"\"),\"Введены некорректные данные\",\"\"))","v":""},null,false]
[null,null,"",null,null,null,null,"",{"$f":"IF(AND(A26<B19,B19<>\"\",A26<>\"\"),\"Введены некорректные данные\",IF(AND(F6<B26,B26<>\"\",F6<>\"\"),\"Введены некорректные данные\",\"\"))","v":""},null,false,null,"1 период",{"$f":"EDATE(B19,12)-1+C30+C55","v":"1900-12-30"},{"$f":"IF(OR(B19=\"\",E19=\"\",F6=\"\"),0,DATEDIF(B19,F6,\"d\")+1)","v":0},{"$f":"O26-C30-C55","v":0},{"$f":"P26-H29","v":0},{"$f":"ROUND(Q26/29.6,2)","v":0},{"$f":"IF((R26-INT(R26))*29.6>=15,INT(R26)+1,INT(R26))","v":0},{"$f":"IF(U24=\"\",0,ROUND(U24/12,2))","v":0},{"$f":"T26*S26","v":0},{"$f":"IF(U26=0,0,IF(U26-INT(U26)>=0.5,INT(U26)+1,INT(U26)))","v":0},{"$f":"IF((V26-H19-V24)>=0,V26-H19-V24,0)","v":0}]
[null,null,"",null,null,null,null,"",{"$f":"IF(AND(A27<B19,B19<>\"\",A27<>\"\"),\"Введены некорректные данные\",IF(AND(F6<B27,B27<>\"\",F6<>\"\"),\"Введены некорректные данные\",\"\"))","v":""},null,false]
[null,null,"",null,null,null,null,"",{"$f":"IF(AND(A28<B19,B19<>\"\",A28<>\"\"),\"Введены некорректные данные\",IF(AND(F6<B28,B28<>\"\",F6<>\"\"),\"Введены некорректные данные\",\"\"))","v":""},null,false]
["Итого:",null,{"$f":"SUM(C24:C28)","v":0},null,null,"Итого:",null,{"$f":"IF(K24=TRUE,H24,0)+IF(K25=TRUE,H25,0)+IF(K26=TRUE,H26,0)+IF(K27=TRUE,H27,0)+IF(K28=TRUE,H28,0)","v":0},null,null,null,null,"Если 2 периода:",null,{"$f":"EDATE(B19,12)-1","v":"1900-12-30"},{"$f":"DATEDIF(B19,O29,\"d\")+1","v":366},null,"Отпуск1 с учетом прогулов:",null,null,{"$f":"IF((E19-H29)<24,IF(E19>=24,24,E19-H29),E19-H29)","v":0},{"$f":"E19-U29","v":0}]
["Рабочий год сдвигается на ",null,{"$f":"IF(C29>14,C29-14,0)","v":0},"дн.",null,null,null,null,null,null,null,null,null,null,null,null,null,"Отпуск2 с учетом прогулов:",null,null,{"$f":"IF((E35-H46)<24,IF(E35>=24,24,E35-H46),E35-H46)","v":0},{"$f":"E35-U30","v":0}]
[null,null,null,null,null,null,null,null,null,null,null,null,"1 период",{"$f":"B35-1","v":-1},{"$f":"IF(OR(B19=\"\",E19=\"\",F6=\"\",B35=\"\",E35=\"\"),0,DATEDIF(B19,N31,\"d\")+1)","v":0},{"$f":"O31-C30","v":0},{"$f":"P31-H29","v":0},{"$f":"ROUND(Q31/29.6,2)","v":0},{"$f":"IF((R31-INT(R31))*29.6>=15,INT(R31)+1,INT(R31))","v":0},{"$f":"IF(U29=\"\",0,ROUND(U29/12,2))","v":0},{"$f":"T31*S31","v":0},{"$f":"IF(U31=0,0,IF(U31-INT(U31)>=0.5,INT(U31)+1,INT(U31)))","v":0},{"$f":"IF((V31-H19-V29)>=0,V31-H19-V29,0)","v":0}]
[null,null,null,null,null,null,null,null,null,null,null,null,"2 период",{"$f":"B35","v":"00:00:00"},{"$f":"IF(OR(F6=\"\",B19=\"\",E19=\"\",B35=\"\",E35=\"\"),0,DATEDIF(B35,F6,\"d\")+1)","v":0},{"$f":"O32-R34-C55","v":0},{"$f":"P32-H46","v":0},{"$f":"ROUND(Q32/29.6,2)","v":0},{"$f":"IF((R32-INT(R32))*29.6>=15,INT(R32)+1,INT(R32))","v":0},{"$f":"IF(U30=\"\",0,ROUND(U30/12,2))","v":0},{"$f":"T32*S32","v":0},{"$f":"IF(U32=0,0,IF(U32-INT(U32)>=0.5,INT(U32)+1,INT(U32)))","v":0},{"$f":"IF((V32-H35-V30)>=0,V32-H35-V30,0)","v":0}]
["Период 2"]
[null,null,null,null,null,null,null,null,null,null,null,null,null,"Отпуск без сохранения зп для 2 периода:",null,null,null,{"$f":"IF(C30>0,C47,IF((C29+C46)>14,(C29+C46-14),0))","v":0}]
["Дата изменения:",null,"Дней отпуска, всего:",null,null,"Из них использовано:",null,null,{"$f":"IF(AND(E35<H35,H35<>\"\",E35<>\"\"),\"Введены некорректные данные\",IF(AND(B19>B35,B35<>\"\",B19<>\"\"),\"Введены некорректные данные\",\"\"))","v":""}]
[]
[]
["Отпуск без сохранения заработной платы:",null,null,null,"Прогулы:"]
[]
["Начало","Окончание","Количество дней",null,null,"Начало","Окончание","Количество дней"]
[null,null,{"$f":"IF(AND(B41>=A41,ISBLANK(A41)=FALSE,ISBLANK(B41)=FALSE),DATEDIF(A41,B41,\"d\")+1,\"\")","v":""},null,null,null,null,{"$f":"IF(AND(G41>=F41,ISBLANK(F41)=FALSE,ISBLANK(G41)=FALSE),DATEDIF(F41,G41,\"d\")+1,\"\")","v":""},{"$f":"IF(AND(A41<B35,B35<>\"\",A41<>\"\"),\"Введены некорректные данные\",IF(AND(F6<B41,B41<>\"\",F6<>\"\"),\"Введены некорректные данные\",\"\"))","v":""},null,false]
[null,null,{"$f":"IF(AND(B42>=A42,ISBLANK(A42)=FALSE,ISBLANK(B42)=FALSE),DATEDIF(A42,B42,\"d\")+1,\"\")","v":""},null,null,null,null,{"$f":"IF(AND(G42>=F42,ISBLANK(F42)=FALSE,ISBLANK(G42)=FALSE),DATEDIF(F42,G42,\"d\")+1,\"\")","v":""},{"$f":"IF(AND(A42<B35,B35<>\"\",A42<>\"\"),\"Введены некорректные данные\",IF(AND(F6<B42,B42<>\"\",F6<>\"\"),\"Введены некорректные данные\",\"\"))","v":""},null,false]
[null,null,"",null,null,null,null,"",{"$f":"IF(AND(A43<B35,B35<>\"\",A43<>\"\"),\"Введены некорректные данные\",IF(AND(F6<B43,B43<>\"\",F6<>\"\"),\"Введены некорректные данные\",\"\"))","v":""},null,false]
[null,null,"",null,null,null,null,"",{"$f":"IF(AND(A44<B35,B35<>\"\",A44<>\"\"),\"Введены некорректные данные\",IF(AND(F6<B44,B44<>\"\",F6<>\"\"),\"Введены некорректные данные\",\"\"))","v":""},null,false]
[null,null,"",null,null,null,null,"",{"$f":"IF(AND(A45<B35,B35<>\"\",A45<>\"\"),\"Введены некорректные данные\",IF(AND(F6<B45,B45<>\"\",F6<>\"\"),\"Введены некорректные данные\",\"\"))","v":""},null,false]
["Итого:",null,{"$f":"SUM(C41:C45)","v":0},null,null,"Итого:",null,{"$f":"IF(K41=TRUE,H41,0)+IF(K42=TRUE,H42,0)+IF(K43=TRUE,H43,0)+IF(K44=TRUE,H44,0)+IF(K45=TRUE,H45,0)","v":0}]
["Уменьшаем на ",null,{"$f":"IF(C46>14,C46-14,0)","v":0},"дн."]
[]
[null,null,null,null,{"$f":"IF(AND(N7=0,Q26>N22),\"Расчет неверный, так как выбранный период превышает рабочий год\",IF(AND(N7=1,(Q31+Q32)>N22),\"Расчет неверный, так как выбранный период превышает рабочий год\",\"\"))","v":""}]
["Отпуск по уходу за ребенком до достижения им трехлетнего возраста:"]
[null,null,null,null,"Введите неиспользованнные дни трудового отпуска за предыдущие годы:"]
["Начало","Окончание","Количество дней",null,null,null,null,null,null,null,null,null,{"$f":"IF(AND(N7=1,(Q31+Q32)>N22),\"Введены период, превышающий 1 рабочий год\",\"\")","v":""}]
[null,null,{"$f":"IF(AND(B53>=A53,ISBLANK(A53)=FALSE,ISBLANK(B53)=FALSE),DATEDIF(A53,B53,\"d\")+1,\"\")","v":""},null,"Количество дней отпуска, подлежащих компенсации ",null,null,null,{"$f":"IF(AND(A53<B19,B19<>\"\",A53<>\"\"),\"Введены некорректные данные\",IF(AND(F6<B53,B53<>\"\",F6<>\"\"),\"Введены некорректные данные\",\"\"))","v":""}]
[null,null,{"$f":"IF(AND(B54>=A54,ISBLANK(A54)=FALSE,ISBLANK(B54)=FALSE),DATEDIF(A54,B54,\"d\")+1,\"\")","v":""},null,"при увольнении:",null,null,null,{"$f":"IF(AND(A54<B19,B19<>\"\",A54<>\"\"),\"Введены некорректные данные\",IF(AND(F6<B54,B54<>\"\",F6<>\"\"),\"Введены некорректные данные\",\"\"))","v":""}]
["Итого:",null,{"$f":"SUM(C50:C54)","v":0},null,null,{"$f":"IF(N7=1,W31+W32,W26)+F52","v":0}]
[]
[]
[]
[]
["Справочно:"]
[]
[null,"Отработано до увольнения, дней","Отработано до увольнения, месяцев","Отработано до увольнения, месяцев (округлено)","Кол-во дней тр.отпуска в месяц","Не использовано дней тр. отпуска","Не использовано дней тр. Отпуска (округлено)","Остаток трудового отпуска, дней"]
["Период 1",{"$f":"Q26","v":0},{"$f":"R26","v":0},0,0,0,0,0]
["Период 1",{"$f":"Q31","v":0},{"$f":"R31","v":0},0,0,0,0,0]
["Период 2",{"$f":"Q32","v":0},0,0,0,0,0,0]

{"sheet":"Расчет2","index":2,"n_rows":142,"n_cols":29,"rows_kept":142,"cut":false,"hidden":false,"merged":[[13,0,13,7],[16,0,16,7],[18,2,18,3],[18,5,18,6],[20,0,20,3],[20,4,20,7],[1,0,1,7],[3,0,3,7],[5,1,5,2],[6,1,6,2],[7,1,7,2],[7,4,9,5],[8,1,9,2],[72,0,72,1],[72,5,72,6],[75,0,75,3],[80,0,80,1],[28,0,28,1],[28,5,28,6],[38,0,38,7],[40,2,40,3],[40,5,40,6],[36,0,36,1],[31,0,31,3],[50,5,50,6],[60,0,60,7],[62,2,62,3],[62,5,62,6],[64,0,64,3],[64,4,64,7],[42,0,42,3],[42,4,42,7],[50,0,50,1],[53,0,53,3],[58,0,58,1],[82,0,82,7],[84,2,84,3],[84,5,84,6],[86,0,86,3],[86,4,86,7],[94,0,94,1],[94,5,94,6],[97,0,97,3],[119,0,119,3],[124,0,124,1],[102,0,102,1],[129,1,130,2],[127,0,127,7],[104,0,104,7],[106,2,106,3],[106,5,106,6],[108,0,108,3],[108,4,108,7],[116,0,116,1],[116,5,116,6],[129,3,130,4],[129,5,130,7]]}
[]
["Расчет количества дней отпуска, подлежащих компенсации при увольнении"]
[]
["Исходные данные"]
[]
["Фамилия:",null,null,null,"Дата увольнения:"]
["Имя:"]
["Отчество:",null,null,null,"Выберите количество рабочих лет для расчета:"]
["Должность:",null,null,null,null,null,null,null,null,null,null,null,null,1]
[]
[]
[]
[]
["Рабочий год 1:"]
[]
[]
["Период 1"]
[]
["Начало рабочего года:",null,"Дней отпуска, всего:",null,null,"Из них использовано:",null,null,{"$f":"IF(AND(E19<H19,H19<>\"\",E19<>\"\"),\"Введены некорректные данные\",IF(AND(F6<B19,B19<>\"\",F6<>\"\"),\"Введены некорректные данные\",\"\"))","v":""}]
[]
["Отпуск без сохранения заработной платы:",null,null,null,"Прогулы:"]
[null,null,null,null,null,null,null,null,null,null,null,null,null,{"$f":"EDATE(B19,12)-B19","v":366}]
["Начало","Окончание","Количество дней",null,null,"Начало","Окончание","Количество дней"]
[null,null,{"$f":"IF(AND(B24>=A24,ISBLANK(A24)=FALSE,ISBLANK(B24)=FALSE),DATEDIF(A24,B24,\"d\")+1,\"\")","v":""},null,null,null,null,{"$f":"IF(AND(G24>=F24,ISBLANK(F24)=FALSE,ISBLANK(G24)=FALSE),DATEDIF(F24,G24,\"d\")+1,\"\")","v":""},{"$f":"IF(AND(A24<B19,B19<>\"\",A24<>\"\"),\"Введены некорректные данные\",IF(AND(F6<B24,B24<>\"\",F6<>\"\"),\"Введены некорректные данные\",\"\"))","v":""},null,false]
[null,null,{"$f":"IF(AND(B25>=A25,ISBLANK(A25)=FALSE,ISBLANK(B25)=FALSE),DATEDIF(A25,B25,\"d\")+1,\"\")","v":""},null,null,null,null,{"$f":"IF(AND(G25>=F25,ISBLANK(F25)=FALSE,ISBLANK(G25)=FALSE),DATEDIF(F25,G25,\"d\")+1,\"\")","v":""},{"$f":"IF(AND(A25<B19,B19<>\"\",A25<>\"\"),\"Введены некорректные данные\",IF(AND(F7<B25,B25<>\"\",F7<>\"\"),\"Введены некорректные данные\",\"\"))","v":""},null,false]
[null,null,"",null,null,null,null,"",{"$f":"IF(AND(A26<B19,B19<>\"\",A26<>\"\"),\"Введены некорректные данные\",IF(AND(F8<B26,B26<>\"\",F8<>\"\"),\"Введены некорректные данные\",\"\"))","v":""},null,false,null,"1 период",{"$f":"EDATE(B19,12)-1+C30+C37+H29","v":"1900-12-30"}]
[null,null,"",null,null,null,null,"",{"$f":"IF(AND(A27<B19,B19<>\"\",A27<>\"\"),\"Введены некорректные данные\",IF(AND(F9<B27,B27<>\"\",F9<>\"\"),\"Введены некорректные данные\",\"\"))","v":""},null,false]
[null,null,"",null,null,null,null,"",{"$f":"IF(AND(A28<B19,B19<>\"\",A28<>\"\"),\"Введены некорректные данные\",IF(AND(F10<B28,B28<>\"\",F10<>\"\"),\"Введены некорректные данные\",\"\"))","v":""},null,false]
["Итого:",null,{"$f":"SUM(C24:C28)","v":0},null,null,"Итого:",null,{"$f":"IF(K24=TRUE,H24,0)+IF(K25=TRUE,H25,0)+IF(K26=TRUE,H26,0)+IF(K27=TRUE,H27,0)+IF(K28=TRUE,H28,0)","v":0}]
["Рабочий год сдвигается на ",null,{"$f":"IF(C29>14,C29-14,0)","v":0},"дн."]
[]
["Отпуск по уходу за ребенком до достижения им трехлетнего возраста:"]
[]
["Начало","Окончание","Количество дней",null,"Окончание рабочего года 1:",null,{"$f":"IF(B19<>\"\",N26,\"\")","v":""}]
[null,null,{"$f":"IF(AND(B35>=A35,ISBLANK(A35)=FALSE,ISBLANK(B35)=FALSE),DATEDIF(A35,B35,\"d\")+1,\"\")","v":""},null,null,null,null,null,{"$f":"IF(AND(A35<B19,B19<>\"\",A35<>\"\"),\"Введены некорректные данные\",\"\")","v":""}]
[null,null,{"$f":"IF(AND(B36>=A36,ISBLANK(A36)=FALSE,ISBLANK(B36)=FALSE),DATEDIF(A36,B36,\"d\")+1,\"\")","v":""},null,null,null,null,null,{"$f":"IF(AND(A36<B19,B19<>\"\",A36<>\"\"),\"Введены некорректные данные\",\"\")","v":""}]
["Итого:",null,{"$f":"SUM(C32:C36)","v":0}]
[]
["Рабочий год 2:"]
[]
["Начало рабочего года:",{"$f":"IF(B19<>\"\",G34+1,\"\")","v":""},"Дней отпуска, всего:",null,null,"Из них использовано:",null,null,{"$f":"IF(AND(E41<H41,H41<>\"\",E41<>\"\"),\"Введены некорректные данные\",IF(AND(F29<B41,B41<>\"\",F29<>\"\"),\"Введены некорректные данные\",\"\"))","v":""}]
[]
["Отпуск без сохранения заработной платы:",null,null,null,"Прогулы:"]
[null,null,null,null,null,null,null,null,null,null,null,null,null,{"$f":"IF(B19<>\"\",EDATE(B41,12)-B41,0)","v":0}]
["Начало","Окончание","Количество дней",null,null,"Начало","Окончание","Количество дней"]
[null,null,{"$f":"IF(AND(B46>=A46,ISBLANK(A46)=FALSE,ISBLANK(B46)=FALSE),DATEDIF(A46,B46,\"d\")+1,\"\")","v":""},null,null,null,null,{"$f":"IF(AND(G46>=F46,ISBLANK(F46)=FALSE,ISBLANK(G46)=FALSE),DATEDIF(F46,G46,\"d\")+1,\"\")","v":""},{"$f":"IF(AND(A46<B41,B41<>\"\",A46<>\"\"),\"Введены некорректные данные\",IF(AND(F28<B46,B46<>\"\",F28<>\"\"),\"Введены некорректные данные\",\"\"))","v":""},null,false]
[null,null,{"$f":"IF(AND(B47>=A47,ISBLANK(A47)=FALSE,ISBLANK(B47)=FALSE),DATEDIF(A47,B47,\"d\")+1,\"\")","v":""},null,null,null,null,{"$f":"IF(AND(G47>=F47,ISBLANK(F47)=FALSE,ISBLANK(G47)=FALSE),DATEDIF(F47,G47,\"d\")+1,\"\")","v":""},{"$f":"IF(AND(A47<B41,B41<>\"\",A47<>\"\"),\"Введены некорректные данные\",IF(AND(F29<B47,B47<>\"\",F29<>\"\"),\"Введены некорректные данные\",\"\"))","v":""},null,false]
[null,null,"",null,null,null,null,"",{"$f":"IF(AND(A48<B41,B41<>\"\",A48<>\"\"),\"Введены некорректные данные\",IF(AND(F30<B48,B48<>\"\",F30<>\"\"),\"Введены некорректные данные\",\"\"))","v":""},null,false,null,"1 период",{"$f":"IF(B19<>\"\",EDATE(B41,12)-1+C52+C59+H51,0)","v":"00:00:00"}]
[null,null,"",null,null,null,null,"",{"$f":"IF(AND(A49<B41,B41<>\"\",A49<>\"\"),\"Введены некорректные данные\",IF(AND(F31<B49,B49<>\"\",F31<>\"\"),\"Введены некорректные данные\",\"\"))","v":""},null,false]
[null,null,"",null,null,null,null,"",{"$f":"IF(AND(A50<B41,B45<>\"\",A50<>\"\"),\"Введены некорректные данные\",IF(AND(F32<B50,B50<>\"\",F32<>\"\"),\"Введены некорректные данные\",\"\"))","v":""},null,false]
["Итого:",null,{"$f":"SUM(C46:C50)","v":0},null,null,"Итого:",null,{"$f":"IF(K46=TRUE,H46,0)+IF(K47=TRUE,H47,0)+IF(K48=TRUE,H48,0)+IF(K49=TRUE,H49,0)+IF(K50=TRUE,H50,0)","v":0}]
["Рабочий год сдвигается на ",null,{"$f":"IF(C51>14,C51-14,0)","v":0},"дн."]
[]
["Отпуск по уходу за ребенком до достижения им трехлетнего возраста:"]
[]
["Начало","Окончание","Количество дней",null,"Окончание рабочего года 2:",null,{"$f":"IF(B41<>\"\",N48,\"\")","v":""}]
[null,null,{"$f":"IF(AND(B57>=A57,ISBLANK(A57)=FALSE,ISBLANK(B57)=FALSE),DATEDIF(A57,B57,\"d\")+1,\"\")","v":""},null,null,null,null,null,{"$f":"IF(AND(A57<B41,B41<>\"\",A57<>\"\"),\"Введены некорректные данные\",\"\")","v":""}]
[null,null,{"$f":"IF(AND(B58>=A58,ISBLANK(A58)=FALSE,ISBLANK(B58)=FALSE),DATEDIF(A58,B58,\"d\")+1,\"\")","v":""},null,null,null,null,null,{"$f":"IF(AND(A58<B41,B41<>\"\",A58<>\"\"),\"Введены некорректные данные\",\"\")","v":""}]
["Итого:",null,{"$f":"SUM(C54:C58)","v":0}]
[]
["Рабочий год 3:"]
[]
["Начало рабочего года:",{"$f":"IF(B19<>\"\",G56+1,\"\")","v":""},"Дней отпуска, всего:",null,null,"Из них использовано:",null,null,{"$f":"IF(AND(E63<H63,H63<>\"\",E63<>\"\"),\"Введены некорректные данные\",IF(AND(F51<B63,B63<>\"\",F51<>\"\"),\"Введены некорректные данные\",\"\"))","v":""}]
[]
["Отпуск без сохранения заработной платы:",null,null,null,"Прогулы:"]
[null,null,null,null,null,null,null,null,null,null,null,null,null,{"$f":"IF(B19<>\"\",EDATE(B63,12)-B63,0)","v":0}]
["Начало","Окончание","Количество дней",null,null,"Начало","Окончание","Количество дней"]
[null,null,{"$f":"IF(AND(B68>=A68,ISBLANK(A68)=FALSE,ISBLANK(B68)=FALSE),DATEDIF(A68,B68,\"d\")+1,\"\")","v":""},null,null,null,null,{"$f":"IF(AND(G68>=F68,ISBLANK(F68)=FALSE,ISBLANK(G68)=FALSE),DATEDIF(F68,G68,\"d\")+1,\"\")","v":""},{"$f":"IF(AND(A68<B63,B63<>\"\",A68<>\"\"),\"Введены некорректные данные\",IF(AND(F50<B68,B68<>\"\",F50<>\"\"),\"Введены некорректные данные\",\"\"))","v":""},null,false]
[null,null,{"$f":"IF(AND(B69>=A69,ISBLANK(A69)=FALSE,ISBLANK(B69)=FALSE),DATEDIF(A69,B69,\"d\")+1,\"\")","v":""},null,null,null,null,{"$f":"IF(AND(G69>=F69,ISBLANK(F69)=FALSE,ISBLANK(G69)=FALSE),DATEDIF(F69,G69,\"d\")+1,\"\")","v":""},{"$f":"IF(AND(A69<B63,B63<>\"\",A69<>\"\"),\"Введены некорректные данные\",IF(AND(F51<B69,B69<>\"\",F51<>\"\"),\"Введены некорректные данные\",\"\"))","v":""},null,false]
[null,null,"",null,null,null,null,"",{"$f":"IF(AND(A70<B63,B63<>\"\",A70<>\"\"),\"Введены некорректные данные\",IF(AND(F52<B70,B70<>\"\",F52<>\"\"),\"Введены некорректные данные\",\"\"))","v":""},null,false,null,"1 период",{"$f":"IF(B19<>\"\",EDATE(B63,12)-1+C74+C81+H73,0)","v":"00:00:00"}]
[null,null,"",null,null,null,null,"",{"$f":"IF(AND(A71<B63,B63<>\"\",A71<>\"\"),\"Введены некорректные данные\",IF(AND(F53<B71,B71<>\"\",F53<>\"\"),\"Введены некорректные данные\",\"\"))","v":""},null,false]
[null,null,"",null,null,null,null,"",{"$f":"IF(AND(A72<B63,B63<>\"\",A72<>\"\"),\"Введены некорректные данные\",IF(AND(F54<B72,B72<>\"\",F54<>\"\"),\"Введены некорректные данные\",\"\"))","v":""},null,false]
["Итого:",null,{"$f":"SUM(C68:C72)","v":0},null,null,"Итого:",null,{"$f":"IF(K68=TRUE,H68,0)+IF(K69=TRUE,H69,0)+IF(K70=TRUE,H70,0)+IF(K71=TRUE,H71,0)+IF(K72=TRUE,H72,0)","v":0}]
["Рабочий год сдвигается на ",null,{"$f":"IF(C73>14,C73-14,0)","v":0},"дн."]
[]
["Отпуск по уходу за ребенком до достижения им трехлетнего возраста:"]
[]
["Начало","Окончание","Количество дней",null,"Окончание рабочего года 3:",null,{"$f":"IF(B63<>\"\",N70,\"\")","v":""}]
[null,null,{"$f":"IF(AND(B79>=A79,ISBLANK(A79)=FALSE,ISBLANK(B79)=FALSE),DATEDIF(A79,B79,\"d\")+1,\"\")","v":""},null,null,null,null,null,{"$f":"IF(AND(A79<B63,B63<>\"\",A79<>\"\"),\"Введены некорректные данные\",\"\")","v":""}]
[null,null,{"$f":"IF(AND(B80>=A80,ISBLANK(A80)=FALSE,ISBLANK(B80)=FALSE),DATEDIF(A80,B80,\"d\")+1,\"\")","v":""},null,null,null,null,null,{"$f":"IF(AND(A80<B63,B63<>\"\",A80<>\"\"),\"Введены некорректные данные\",\"\")","v":""}]
["Итого:",null,{"$f":"SUM(C76:C80)","v":0}]
[]
["Рабочий год 4:"]
[]
["Начало рабочего года:",{"$f":"IF(B19<>\"\",G78+1,\"\")","v":""},"Дней отпуска, всего:",null,null,"Из них использовано:",null,null,{"$f":"IF(AND(E85<H85,H85<>\"\",E85<>\"\"),\"Введены некорректные данные\",IF(AND(F73<B85,B85<>\"\",F73<>\"\"),\"Введены некорректные данные\",\"\"))","v":""}]
[]
["Отпуск без сохранения заработной платы:",null,null,null,"Прогулы:"]
[null,null,null,null,null,null,null,null,null,null,null,null,null,{"$f":"IF(B19<>\"\",EDATE(B85,12)-B85,0)","v":0}]
["Начало","Окончание","Количество дней",null,null,"Начало","Окончание","Количество дней"]
[null,null,{"$f":"IF(AND(B90>=A90,ISBLANK(A90)=FALSE,ISBLANK(B90)=FALSE),DATEDIF(A90,B90,\"d\")+1,\"\")","v":""},null,null,null,null,{"$f":"IF(AND(G90>=F90,ISBLANK(F90)=FALSE,ISBLANK(G90)=FALSE),DATEDIF(F90,G90,\"d\")+1,\"\")","v":""},{"$f":"IF(AND(A90<B85,B85<>\"\",A90<>\"\"),\"Введены некорректные данные\",IF(AND(F72<B90,B90<>\"\",F72<>\"\"),\"Введены некорректные данные\",\"\"))","v":""},null,false]
[null,null,{"$f":"IF(AND(B91>=A91,ISBLANK(A91)=FALSE,ISBLANK(B91)=FALSE),DATEDIF(A91,B91,\"d\")+1,\"\")","v":""},null,null,null,null,{"$f":"IF(AND(G91>=F91,ISBLANK(F91)=FALSE,ISBLANK(G91)=FALSE),DATEDIF(F91,G91,\"d\")+1,\"\")","v":""},{"$f":"IF(AND(A91<B85,B85<>\"\",A91<>\"\"),\"Введены некорректные данные\",IF(AND(F73<B91,B91<>\"\",F73<>\"\"),\"Введены некорректные данные\",\"\"))","v":""},null,false]
[null,null,"",null,null,null,null,"",{"$f":"IF(AND(A92<B85,B85<>\"\",A92<>\"\"),\"Введены некорректные данные\",IF(AND(F74<B92,B92<>\"\",F74<>\"\"),\"Введены некорректные данные\",\"\"))","v":""},null,false,null,"1 период",{"$f":"IF(B19<>\"\",EDATE(B85,12)-1+C96+C103+H95,0)","v":"00:00:00"}]
[null,null,"",null,null,null,null,"",{"$f":"IF(AND(A93<B85,B85<>\"\",A93<>\"\"),\"Введены некорректные данные\",IF(AND(F75<B93,B93<>\"\",F75<>\"\"),\"Введены некорректные данные\",\"\"))","v":""},null,false]
[null,null,"",null,null,null,null,"",{"$f":"IF(AND(A94<B85,B85<>\"\",A94<>\"\"),\"Введены некорректные данные\",IF(AND(F76<B94,B94<>\"\",F76<>\"\"),\"Введены некорректные данные\",\"\"))","v":""},null,false]
["Итого:",null,{"$f":"SUM(C90:C94)","v":0},null,null,"Итого:",null,{"$f":"IF(K90=TRUE,H90,0)+IF(K91=TRUE,H91,0)+IF(K92=TRUE,H92,0)+IF(K93=TRUE,H93,0)+IF(K94=TRUE,H94,0)","v":0}]
["Рабочий год сдвигается на ",null,{"$f":"IF(C95>14,C95-14,0)","v":0},"дн."]
[]
["Отпуск по уходу за ребенком до достижения им трехлетнего возраста:"]
[]
["Начало","Окончание","Количество дней",null,"Окончание рабочего года 4:",null,{"$f":"IF(B85<>\"\",N92,\"\")","v":""}]
[null,null,{"$f":"IF(AND(B101>=A101,ISBLANK(A101)=FALSE,ISBLANK(B101)=FALSE),DATEDIF(A101,B101,\"d\")+1,\"\")","v":""},null,null,null,null,null,{"$f":"IF(AND(A101<B85,B85<>\"\",A101<>\"\"),\"Введены некорректные данные\",\"\")","v":""}]
[null,null,{"$f":"IF(AND(B102>=A102,ISBLANK(A102)=FALSE,ISBLANK(B102)=FALSE),DATEDIF(A102,B102,\"d\")+1,\"\")","v":""},null,null,null,null,null,{"$f":"IF(AND(A102<B85,B85<>\"\",A102<>\"\"),\"Введены некорректные данные\",\"\")","v":""}]
["Итого:",null,{"$f":"SUM(C98:C102)","v":0}]
[]
["Рабочий год 5:"]
[]
["Начало рабочего года:",{"$f":"IF(B19<>\"\",G100+1,\"\")","v":""},"Дней отпуска, всего:",null,null,"Из них использовано:",null,null,{"$f":"IF(AND(E107<H107,H107<>\"\",E107<>\"\"),\"Введены некорректные данные\",IF(AND(F95<B107,B107<>\"\",F95<>\"\"),\"Введены некорректные данные\",\"\"))","v":""}]
[]
["Отпуск без сохранения заработной платы:",null,null,null,"Прогулы:"]
[null,null,null,null,null,null,null,null,null,null,null,null,null,{"$f":"IF(B19<>\"\",EDATE(B107,12)-B107,0)","v":0}]
["Начало","Окончание","Количество дней",null,null,"Начало","Окончание","Количество дней"]
[null,null,{"$f":"IF(AND(B112>=A112,ISBLANK(A112)=FALSE,ISBLANK(B112)=FALSE),DATEDIF(A112,B112,\"d\")+1,\"\")","v":""},null,null,null,null,{"$f":"IF(AND(G112>=F112,ISBLANK(F112)=FALSE,ISBLANK(G112)=FALSE),DATEDIF(F112,G112,\"d\")+1,\"\")","v":""},{"$f":"IF(AND(A112<B107,B107<>\"\",A112<>\"\"),\"Введены некорректные данные\",IF(AND(F94<B112,B112<>\"\",F94<>\"\"),\"Введены некорректные данные\",\"\"))","v":""},null,false]
[null,null,{"$f":"IF(AND(B113>=A113,ISBLANK(A113)=FALSE,ISBLANK(B113)=FALSE),DATEDIF(A113,B113,\"d\")+1,\"\")","v":""},null,null,null,null,{"$f":"IF(AND(G113>=F113,ISBLANK(F113)=FALSE,ISBLANK(G113)=FALSE),DATEDIF(F113,G113,\"d\")+1,\"\")","v":""},{"$f":"IF(AND(A113<B107,B107<>\"\",A113<>\"\"),\"Введены некорректные данные\",IF(AND(F95<B113,B113<>\"\",F95<>\"\"),\"Введены некорректные данные\",\"\"))","v":""},null,false]
[null,null,"",null,null,null,null,"",{"$f":"IF(AND(A114<B107,B107<>\"\",A114<>\"\"),\"Введены некорректные данные\",IF(AND(F96<B114,B114<>\"\",F96<>\"\"),\"Введены некорректные данные\",\"\"))","v":""},null,false,null,"1 период"]
[null,null,"",null,null,null,null,"",{"$f":"IF(AND(A115<B107,B107<>\"\",A115<>\"\"),\"Введены некорректные данные\",IF(AND(F97<B115,B115<>\"\",F97<>\"\"),\"Введены некорректные данные\",\"\"))","v":""},null,false]
[null,null,"",null,null,null,null,"",{"$f":"IF(AND(A116<B107,B107<>\"\",A116<>\"\"),\"Введены некорректные данные\",IF(AND(F98<B116,B116<>\"\",F98<>\"\"),\"Введены некорректные данные\",\"\"))","v":""},null,false]
["Итого:",null,{"$f":"SUM(C112:C116)","v":0},null,null,"Итого:",null,{"$f":"IF(K112=TRUE,H112,0)+IF(K113=TRUE,H113,0)+IF(K114=TRUE,H114,0)+IF(K115=TRUE,H115,0)+IF(K116=TRUE,H116,0)","v":0}]
["Рабочий год сдвигается на ",null,{"$f":"IF(C117>14,C117-14,0)","v":0},"дн."]
[]
["Отпуск по уходу за ребенком до достижения им трехлетнего возраста:"]
[]
["Начало","Окончание","Количество дней",null,"Дата увольнения:",null,{"$f":"IF(F6=\"\",\"\",F6)","v":""}]
[null,null,{"$f":"IF(AND(B123>=A123,ISBLANK(A123)=FALSE,ISBLANK(B123)=FALSE),DATEDIF(A123,B123,\"d\")+1,\"\")","v":""},null,null,null,null,null,{"$f":"IF(AND(A123<B107,B107<>\"\",A123<>\"\"),\"Введены некорректные данные\",\"\")","v":""}]
[null,null,{"$f":"IF(AND(B124>=A124,ISBLANK(A124)=FALSE,ISBLANK(B124)=FALSE),DATEDIF(A124,B124,\"d\")+1,\"\")","v":""},null,null,null,null,null,{"$f":"IF(AND(A124<B107,B107<>\"\",A124<>\"\"),\"Введены некорректные данные\",\"\")","v":""}]
["Итого:",null,{"$f":"SUM(C120:C124)","v":0}]
[]
[]
["Количество дней отпуска, подлежащих компенсации при увольнении:",null,null,null,null,null,null,null,null,null,null,null,null,null,null,null,null,"Отпуск с учетом прогулов:",null,null,{"$f":"IF((E19-H29)<24,IF(E19>=24,24,E19-H29),E19-H29)","v":0},{"$f":"E19-U128","v":0},null,null,"Остаток по году",null,null,null,"Проверка"]
[null,null,null,{"$f":"IF(F6=\"\",\"Введите дату увольнения\",\"\")","v":"Введите дату увольнения"}]
[null,{"$f":"IF(AND(B19<>\"\",N9=1,E19=\"\"),\"Введите количество дней отпуска\",IF(AND(B19<>\"\",N9=2,OR(E19=\"\",E41=\"\")),\"Введите количество дней отпуска\",IF(AND(B19<>\"\",N9=3,OR(E19=\"\",E41=\"\",E63=\"\")),\"Введите количество дней отпуска\",IF(AND(B19<>\"\",N9=4,OR(E19=\"\",E41=\"\",E63=\"\",E85=\"\")),\"Введите количество дней отпуска\",IF(AND(B19<>\"\",N9=5,OR(E19=\"\",E41=\"\",E63=\"\",E85=\"\",E107=\"\")),\"Введите количество дней отпуска\",\"\")))))","v":""},null,{"$f":"IF(OR(D132=\"Введите начало рабочего года\",B130=\"Введите количество дней отпуска\",D129=\"Введите дату увольнения\"),\"\",IF(N9=1,AA130,IF(N9=2,AA133,IF(N9=3,AA136,IF(N9=4,AA139,IF(N9=5,AA142))))))","v":""},null,{"$f":"IF(AND(N9=1,AC130=1),\"! Расчет неверный, так как выбранный период превышает рабочий год\",IF(AND(N9=2,AC133=1),\"! Расчет неверный, так как выбранный период превышает рабочий год\",IF(AND(N9=3,AC136=1),\"! Расчет неверный, так как выбранный период превышает рабочий год\",IF(AND(N9=4,AC139=1),\"! Расчет неверный, так как выбранный период превышает рабочий год\",IF(AND(N9=5,AC142=1),\"! Расчет неверный, так как выбранный период превышает рабочий год\",\"\")))))","v":""},null,null,null,null,null,null,"1 год",{"$f":"EDATE(B19,12)-1+C30+C37","v":"1900-12-30"},{"$f":"IF(OR(B19=\"\",E19=\"\",$F$6=\"\"),0,DATEDIF(B19,$F$6,\"d\")+1)","v":0},{"$f":"O130-C30-C37","v":0},{"$f":"P130-H29","v":0},{"$f":"ROUND(Q130/29.6,2)","v":0},{"$f":"IF((R130-INT(R130))*29.6>=15,INT(R130)+1,INT(R130))","v":0},{"$f":"IF(U128=\"\",0,ROUND(U128/12,2))","v":0},{"$f":"T130*S130","v":0},{"$f":"IF(U130=0,0,IF(U130-INT(U130)>=0.5,INT(U130)+1,INT(U130)))","v":0},{"$f":"IF((V130-H19-V128)>=0,V130-H19-V128,0)","v":0},null,{"$f":"E19-H19","v":0},null,{"$f":"W130","v":0},null,{"$f":"IF(AND(Q130>N22,B19<>\"\"),1,0)","v":0}]
[null,null,null,null,null,null,null,null,null,null,null,null,null,null,null,null,null,"Отпуск с учетом прогулов:",null,null,{"$f":"IF((E41-H51)<24,IF(E41>=24,24,E41-H51),E41-H51)","v":0},{"$f":"E41-U131","v":0}]
[null,null,null,{"$f":"IF(B19=\"\",\"Введите начало рабочего года\",\"\")","v":"Введите начало рабочего года"}]
[null,null,null,null,null,null,null,null,null,null,null,null,"2 года",{"$f":"IF(B19<>\"\",EDATE(B41,12)+C52+C59,0)","v":"00:00:00"},{"$f":"IF(OR(B41=\"\",E41=\"\",$F$6=\"\",B41>=F6),0,DATEDIF(B41,$F$6,\"d\")+1)","v":0},{"$f":"O133-C52-C59","v":0},{"$f":"P133-H51","v":0},{"$f":"ROUND(Q133/29.6,2)","v":0},{"$f":"IF((R133-INT(R133))*29.6>=15,INT(R133)+1,INT(R133))","v":0},{"$f":"IF(U131=\"\",0,ROUND(U131/12,2))","v":0},{"$f":"T133*S133","v":0},{"$f":"IF(U133=0,0,IF(U133-INT(U133)>=0.5,INT(U133)+1,INT(U133)))","v":0},{"$f":"IF((V133-H41-V131)>=0,V133-H41-V131,0)","v":0},null,{"$f":"E41-H41","v":0},null,{"$f":"W133+Y130","v":0},null,{"$f":"IF(AND(B19<>\"\",Q133>N44),1,0)","v":0}]
[null,null,null,null,null,null,null,null,null,null,null,null,null,null,null,null,null,"Отпуск с учетом прогулов:",null,null,{"$f":"IF((E63-H73)<24,IF(E63>=24,24,E63-H73),E63-H73)","v":0},{"$f":"E63-U134","v":0}]
[]
[null,null,null,null,null,null,null,null,null,null,null,null,"3 года",{"$f":"IF(B19<>\"\",EDATE(B63,12)+C74+C81,0)","v":"00:00:00"},{"$f":"IF(OR(B63=\"\",E63=\"\",$F$6=\"\",B63>=F6),0,DATEDIF(B63,$F$6,\"d\")+1)","v":0},{"$f":"O136-C74-C81","v":0},{"$f":"P136-H73","v":0},{"$f":"ROUND(Q136/29.6,2)","v":0},{"$f":"IF((R136-INT(R136))*29.6>=15,INT(R136)+1,INT(R136))","v":0},{"$f":"IF(U134=\"\",0,ROUND(U134/12,2))","v":0},{"$f":"T136*S136","v":0},{"$f":"IF(U136=0,0,IF(U136-INT(U136)>=0.5,INT(U136)+1,INT(U136)))","v":0},{"$f":"IF((V136-H63-V134)>=0,V136-H63-V134,0)","v":0},null,{"$f":"E63-H63","v":0},null,{"$f":"W136+Y133+Y130","v":0},null,{"$f":"IF(AND(B19<>\"\",Q136>N66),1,0)","v":0}]
[null,null,null,null,null,null,null,null,null,null,null,null,null,null,null,null,null,"Отпуск с учетом прогулов:",null,null,{"$f":"IF((E85-H95)<24,IF(E85>=24,24,E85-H95),E85-H95)","v":0},{"$f":"E85-U137","v":0}]
[]
[null,null,null,null,null,null,null,null,null,null,null,null,"4 года",{"$f":"IF(B19<>\"\",EDATE(B85,12)+C96+C103,0)","v":"00:00:00"},{"$f":"IF(OR(B85=\"\",E85=\"\",$F$6=\"\",B85>=F6),0,DATEDIF(B85,$F$6,\"d\")+1)","v":0},{"$f":"O139-C96-C103","v":0},{"$f":"P139-H95","v":0},{"$f":"ROUND(Q139/29.6,2)","v":0},{"$f":"IF((R139-INT(R139))*29.6>=15,INT(R139)+1,INT(R139))","v":0},{"$f":"IF(U137=\"\",0,ROUND(U137/12,2))","v":0},{"$f":"T139*S139","v":0},{"$f":"IF(U139=0,0,IF(U139-INT(U139)>=0.5,INT(U139)+1,INT(U139)))","v":0},{"$f":"IF((V139-H85-V137)>=0,V139-H85-V137,0)","v":0},null,{"$f":"E85-H85","v":0},null,{"$f":"W139+Y136+Y133+Y130","v":0},null,{"$f":"IF(AND(B19<>\"\",Q139>N88),1,0)","v":0}]
[null,null,null,null,null,null,null,null,null,null,null,null,null,null,null,null,null,"Отпуск с учетом прогулов:",null,null,{"$f":"IF((E107-H117)<24,IF(E107>=24,24,E107-H117),E107-H117)","v":0},{"$f":"E107-U140","v":0}]
[]
[null,null,null,null,null,null,null,null,null,null,null,null,"5 лет",{"$f":"IF(B19<>\"\",EDATE(B107,12)+C118+C125,0)","v":"00:00:00"},{"$f":"IF(OR(B107=\"\",E107=\"\",$F$6=\"\",B107>=F6),0,DATEDIF(B107,$F$6,\"d\")+1)","v":0},{"$f":"O142-C118-C125","v":0},{"$f":"P142-H117","v":0},{"$f":"ROUND(Q142/29.6,2)","v":0},{"$f":"IF((R142-INT(R142))*29.6>=15,INT(R142)+1,INT(R142))","v":0},{"$f":"IF(U140=\"\",0,ROUND(U140/12,2))","v":0},{"$f":"T142*S142","v":0},{"$f":"IF(U142=0,0,IF(U142-INT(U142)>=0.5,INT(U142)+1,INT(U142)))","v":0},{"$f":"IF((V142-H107-V140)>=0,V142-H107-V140,0)","v":0},null,null,null,{"$f":"W142+Y130+Y133+Y136+Y139","v":0},null,{"$f":"IF(AND(B19<>\"\",Q142>N110),1,0)","v":0}]

{"sheet":"Приказ об увольнении","index":3,"n_rows":29,"n_cols":8,"rows_kept":29,"cut":false,"hidden":false,"merged":[[0,0,0,9],[17,0,18,9],[24,7,25,9],[27,7,28,9],[31,7,31,9]]}
["ПРОЕКТ ПРИКАЗА ОБ УВОЛЬНЕНИИ И ВЫПЛАТЕ КОМПЕНСАЦИИ\nЗА НЕИСПОЛЬЗОВАННЫЙ ОТПУСК\n"]
[]
["ГУО \"__________________________\""]
[]
[]
[]
[]
["ПРИКАЗ"]
[]
["Дата","№"]
[]
["г. Минск"]
[]
["Об увольнении с работы"]
["    "]
["УВОЛИТЬ:"]
[]
["     ___ФИО__________, __должность___, __дата увольнения__ по соглашению сторон (п. 1 ч. 2 ст. 35 Трудового кодекса Республики Беларусь) с выплатой денежной компенсации за  ____ календарных дня (дней) неиспользованного трудового отпуска пропорционально отработанному времени с ________ по _________."]
[]
[]
[]
[]
["Основание:",null,"заявление _________________ от _______ № ___."]
[]
["__________________",null,null,null,"_________________",null,null,"____________"]
[null,null,null,null,"дата"]
[]
["С приказом ознакомлен",null,null,null,"_________________",null,null,"____________"]
[null,null,null,null,"дата"]

{"sheet":"Правовое обоснование","index":4,"n_rows":12,"n_cols":1,"rows_kept":12,"cut":false,"hidden":false,"merged":[[11,0,11,8],[6,0,6,8],[7,0,7,8],[8,0,8,8],[9,0,9,8],[10,0,10,8],[5,0,5,8],[0,0,0,8],[1,0,1,8],[2,0,2,8],[3,0,3,8],[4,0,4,8]]}
["     В соответствии со ст. 179 ТК при увольнении независимо от его основания работнику, который не использовал или использовал не полностью трудовой отпуск, выплачивается денежная компенсация."]
["     Денежная компенсация за полный трудовой отпуск выплачивается в том случае, если ко дню увольнения работник проработал весь рабочий год (12 месяцев минус суммарная продолжительность трудового отпуска, на которую работник имеет право)."]
["     Если ко дню увольнения работник проработал часть рабочего года, денежная компенсация выплачивается пропорционально отработанному времени."]
["     Денежная компенсация за неиспользованный трудовой отпуск при увольнении выплачивается в сроки, установленные ст. 77 ТК (не позднее дня увольнения)."]
[]
["Важно: компенсация за неиспользованный трудовой отпуск выплачивается работнику независимо от основания увольнения: соглашение сторон, желание (требование) работника, инициатива нанимателя (как за виновные действия работника, так и не по его вине), истечение срока трудового договора, обстоятельства, не зависящие от воли сторон, и т.д."]
[]
["     Для выплаты компенсации при увольнении причины неиспользования трудового отпуска значения не имеют. Трудовой отпуск может быть не использован работником в связи с тем, что на момент увольнения не наступило время предоставления отпуска согласно графику трудовых отпусков, или наниматель в нарушение законодательства не предоставил работнику трудовой отпуск, или работник отказался использовать отпуск, предоставленный с соблюдением установленного порядка, в определенный для него срок без законных оснований и т.д."]
["    Компенсации при увольнении подлежат все виды неиспользованных трудовых отпусков: основной, дополнительные (за вредные условия труда, за ненормированный рабочий день, поощрительные и др.)."]
["    Если по каким-либо причинам у работника на момент увольнения остались неиспользованные трудовые отпуска за несколько рабочих лет, то денежная компенсация выплачивается за все эти отпуска."]
[]
["Важно: компенсация за неиспользованный трудовой отпуск выплачивается всем категориям работников, в т.ч. временным и сезонным работникам, совместителям, работникам с неполным рабочим временем."]

{"sheet":"Отпуск более 24 дней","index":5,"n_rows":31,"n_cols":7,"rows_kept":31,"cut":false,"hidden":false,"merged":[[30,0,30,2],[30,3,30,5],[30,6,30,7],[28,0,28,2],[28,3,28,5],[28,6,28,7],[29,0,29,2],[29,3,29,5],[29,6,29,7],[26,0,26,2],[26,3,26,5],[26,6,26,7],[27,0,27,2],[27,3,27,5],[27,6,27,7],[24,0,24,2],[24,3,24,5],[24,6,24,7],[25,0,25,2],[25,3,25,5],[25,6,25,7],[22,0,22,2],[22,3,22,5],[22,6,22,7],[23,0,23,2],[23,3,23,5],[23,6,23,7],[20,0,20,2],[20,3,20,5],[20,6,20,7],[21,0,21,2],[21,3,21,5],[21,6,21,7],[18,0,18,2],[18,3,18,5],[18,6,18,7],[19,0,19,2],[19,3,19,5],[19,6,19,7],[16,0,16,2],[16,3,16,5],[16,6,16,7],[17,0,17,2],[17,3,17,5],[17,6,17,7],[7,5,7,7],[8,5,8,7],[15,0,15,2],[15,3,15,5],[15,6,15,7],[5,5,5,7],[6,5,6,7],[0,5,0,7],[1,5,1,7],[2,5,2,7],[3,5,3,7],[4,5,4,7]]}
[null,null,null,null,null,"Приложение 1"]
[null,null,null,null,null,"к постановлению"]
[null,null,null,null,null,"Совета Министров"]
[null,null,null,null,null,"Республики Беларусь"]
[null,null,null,null,null,"от 24.01.2008 № 100"]
[null,null,null,null,null,"(в редакции постановления"]
[null,null,null,null,null,"Совета Министров"]
[null,null,null,null,null," Республики Беларусь"]
[null,null,null,null,null,"12.08.2022 № 527)"]
[]
[]
["ПЕРЕЧЕНЬ"]
["организаций и должностей служащих педагогических работников, "]
["продолжительность основного отпуска которых составляет более 24 календарных дней"]
["(в ред. постановления Совмина от 12.08.2022 N 527)"]
["Наименование организаций",null,null,"Наименование должностей",null,null,"Продолжительность основного отпуска (в календарных днях)"]
["1. Учреждения общего среднего образования, учреждения среднего специального образования (кроме обособленных и структурных подразделений при реализации образовательных программ дополнительного образования взрослых, за исключением образовательной программы подготовки лиц к поступлению в учреждения образования Республики Беларусь), специальные школы, специальные школы-интернаты, центры коррекционно-развивающего обучения и реабилитации, специальные учебно-воспитательные учреждения, специальные лечебно-воспитательные учреждения, детские школы искусств, учреждение образования \"Национальный детский образовательно-оздоровительный центр \"Зубренок\", учреждение образования \"Национальный детский технопарк\", государственное учреждение образования \"Минский городской образовательно-оздоровительный центр \"Лидер\", обособленные и структурные подразделения учреждений образования при реализации образовательных программ общего среднего образования, профессионально-технического образования и среднего специального образования",null,null,"директора (начальники, заведующие), заместители директоров (начальников, заведующих) по учебной, учебно-воспитательной, учебно-методической, учебно-производственной, воспитательной работе, производственному обучению, работе с иностранными учащимися, по спорту, основной деятельности, заведующие филиалами, общежитиями учреждений общего среднего образования, учебно-консультационными пунктами, отделениями, центрами профессиональной и социальной реабилитации лиц с особенностями психофизического развития, центрами компетенций, ресурсными центрами, начальники отделов воспитательной работы с молодежью, преподаватели, учителя, учителя-дефектологи, руководители физического воспитания, по военно-патриотическому воспитанию, практики, музыкальные руководители",null,null,56]
["2. Учреждения высшего образования (кроме обособленных и структурных подразделений при реализации образовательных программ дополнительного образования взрослых, за исключением образовательной программы подготовки лиц к поступлению в учреждения образования Республики Беларусь)",null,null,"ректоры, первые проректоры, проректоры по учебной, научной, воспитательной, лечебной (клинической), летной работе, вечернему, заочному, производственному обучению, заведующие подготовительными отделениями, директора (начальники, заведующие) структурных подразделений по основной деятельности и их заместители по основной деятельности, заведующие докторантурами, аспирантурами, резидентурами, магистратурами, интернатурами, учебно-консультационными пунктами, деканы и их заместители, заведующие кафедрами (начальники кафедр), профессора, доценты, старшие преподаватели, преподаватели (ассистенты), преподаватели-стажеры, руководители практики, начальники (заведующие) управлений, отделов по воспитательной работе с молодежью и их заместители, ученые секретари",null,null,56]
["3. Санаторные детские сады и санаторные группы для детей, больных туберкулезом и с риском его развития, страдающих онкологическими заболеваниями, инфицированных вирусом иммунодефицита человека, созданные в качестве структурных подразделений санаторные ясли-сады для детей, больных туберкулезом и с риском его развития, страдающих онкологическими заболеваниями, инфицированных вирусом иммунодефицита человека, пункты коррекционно-педагогической помощи в учреждениях образования и иных организациях, которым в соответствии с законодательством предоставлено право осуществлять образовательную деятельность при реализации образовательной программы дошкольного образования, специальные детские сады, дома ребенка, специальные группы и санаторные специальные группы, группы интегрированного обучения и воспитания и санаторные группы интегрированного обучения и воспитания при реализации образовательных программ специального образования на уровне дошкольного образования, обособленные и структурные подразделения иных организаций, которым в соответствии с законодательством предоставлено право осуществлять образовательную деятельность при реализации образовательных программ специального образования на уровне дошкольного образования",null,null,"директора, заместители директоров по учебно-методической, воспитательной работе, заведующие, заместители заведующих по основной деятельности, воспитатели-методисты, воспитатели дошкольного образования, руководители физического воспитания, музыкальные руководители, учителя-дефектологи",null,null,56]
["4. Социально-педагогические учреждения, детские дома семейного типа, приемные семьи",null,null,"директора (заведующие), заместители директоров по учебной, учебно-воспитательной, учебно-методической, воспитательной работе, по основной деятельности, заместители директоров по основной деятельности - заведующие детскими социальными приютами, заведующие отделами (секторами) по основной деятельности, воспитатели, музыкальные руководители, учителя-дефектологи, родители-воспитатели, приемные родители",null,null,56]
["5. Дома-интернаты и специализированные учреждения для детей-инвалидов с особенностями психофизического развития, государственное учреждение \"Республиканский реабилитационный центр для детей-инвалидов\", обособленные и структурные подразделения организаций здравоохранения для детей с особенностями психофизического развития, психиатрическими, психоневрологическими, онкологическими заболеваниями, больных туберкулезом, а также для больных с острыми нарушениями мозгового кровообращения, нарушениями слуха, голоса и речи, заболеваниями нервной системы и поражением опорно-двигательного аппарата",null,null,"заместители директоров по учебно-воспитательной работе, заведующие отделениями социальной и психологической реабилитации и адаптации, педагоги дополнительного образования, музыкальные руководители, педагоги-психологи, учителя, воспитатели, педагоги-организаторы, педагоги социальные, учителя-дефектологи",null,null,56]
["6. Санаторные школы-интернаты для детей, больных туберкулезом и с риском его развития, специальные школы, специальные школы-интернаты, центры коррекционно-развивающего обучения и реабилитации, специальные детские сады, социально-педагогические учреждения, специальные учебно-воспитательные учреждения, специальные лечебно-воспитательные учреждения",null,null,"педагоги дополнительного образования",null,null,56]
["7. Учреждения общего среднего образования (кроме обособленных и структурных подразделений при реализации образовательной программы дошкольного образования), специальные школы, специальные школы-интернаты, центры коррекционно-развивающего обучения и реабилитации, специальные учебно-воспитательные учреждения, специальные лечебно-воспитательные учреждения, учреждение образования \"Национальный детский образовательно-оздоровительный центр \"Зубренок\", учреждение образования \"Национальный детский технопарк\", государственное учреждение образования \"Минский городской образовательно-оздоровительный центр \"Лидер\", обособленные и структурные подразделения учреждений высшего образования при реализации образовательных программ общего среднего образования",null,null,"воспитатели, воспитатели дошкольного образования",null,null,56]
["8. Учреждения образования (кроме учреждений дополнительного образования детей и молодежи, учреждений дополнительного образования взрослых, воспитательно-оздоровительных учреждений образования), учреждение образования \"Национальный детский образовательно-оздоровительный центр \"Зубренок\", учреждение образования \"Национальный детский технопарк\", государственное учреждение образования \"Минский городской образовательно-оздоровительный центр \"Лидер\", обособленные и структурные подразделения иных организаций, которым в соответствии с законодательством предоставлено право осуществлять образовательную деятельность при реализации образовательной программы дошкольного образования и образовательных программ специального образования на уровне дошкольного образования",null,null,"педагоги-психологи, педагоги социальные, педагоги-организаторы, старшие мастера и мастера производственного обучения учреждений образования",null,null,56]
["9. Специализированные учебно-спортивные учреждения, учреждения общего среднего образования",null,null,"тренеры-преподаватели по спорту",null,null,42]
["10. Учреждения дошкольного образования (кроме указанных в пункте 3 настоящей графы), обособленные и структурные подразделения учреждений образования и иных организаций, которым в соответствии с законодательством предоставлено право осуществлять образовательную деятельность при реализации образовательной программы дошкольного образования (кроме указанных в пункте 3 настоящей графы)",null,null,"заведующие, заместители заведующих по основной деятельности, воспитатели-методисты, воспитатели дошкольного образования, музыкальные руководители, руководители физического воспитания",null,null,42]
["11. Учреждения среднего специального образования, специальные профессионально-технические училища закрытого типа, специальные лечебно-воспитательные профессионально-технические училища закрытого типа, обособленные и структурные подразделения учреждений образования при реализации образовательных программ профессионально-технического образования и среднего специального образования, учреждение образования \"Национальный детский технопарк\"",null,null,"заведующие учебно-методическими кабинетами, лабораториями",null,null,30]
["12. Учреждения среднего специального образования, учреждения высшего образования, обособленные и структурные подразделения учреждений образования при реализации образовательных программ профессионально-технического образования и среднего специального образования",null,null,"воспитатели",null,null,30]
["13. Учреждения образования (кроме учреждений образования, указанных в пункте 6 настоящей графы, а также учреждений дополнительного образования детей и молодежи, воспитательно-оздоровительных учреждений образования), учреждение образования \"Национальный детский образовательно-оздоровительный центр \"Зубренок\", учреждение образования \"Национальный детский технопарк\", государственное учреждение образования \"Минский городской образовательно-оздоровительный центр \"Лидер\"",null,null,"педагоги дополнительного образования, заведующие отделами (секторами) по основной деятельности",null,null,30]
["14. Учреждения образования (кроме учреждений дополнительного образования детей и молодежи, учреждений дополнительного образования взрослых, воспитательно-оздоровительных учреждений образования), учреждение образования \"Национальный детский образовательно-оздоровительный центр \"Зубренок\", учреждение образования \"Национальный детский технопарк\"",null,null,"концертмейстеры, аккомпаниаторы, методисты",null,null,30]
["15. Обособленные и структурные подразделения организаций здравоохранения для оказания медицинской помощи больным детям (кроме обособленных и структурных подразделений организаций здравоохранения, указанных в пункте 5 настоящей графы)",null,null,"воспитатели, музыкальные руководители",null,null,42]

{"sheet":"Данные об организации","index":6,"n_rows":4,"n_cols":1,"rows_kept":4,"cut":false,"hidden":false,"merged":[]}
["Наименование"]
["ФИО руководителя"]
["Наименование должности"]
["Населенный пункт"]